[Event "Djerba Festival Open-A 2024"]
[Site "Djerba"]
[Date "2024.02.22"]
[Round "5.5"]
[White "Travadon, Loic"]
[Black "Merenciano, Alexandre"]
[Result "1-0"]
[ECO "B10"]
[WhiteElo "2460"]
[BlackElo "2194"]
[Annotator "TA"]
[PlyCount "105"]
[EventDate "2024.02.18"]
[EventType "swiss"]
[EventCountry "TUN"]
[SourceTitle "playchess.com"]
[Source "ChessBase"]
[SourceQuality "1"]
[TimeControl "5400+30"]

{[%evp 9,104,-4,-11,-9,16,16,13,9,22,14,14,10,8,0,41,38,58,48,59,58,50,47,70,75,85,66,107,105,118,124,202,197,202,85,63,72,368,356,381,353,362,375,409,402,747,200,198,198,238,235,218,168,275,256,290,276,322,310,378,297,309,329,372,320,562,552,539,503,652,547,1170,1095,29994,819,793,795,637,523,703,689,29974,29975,29979,29980,29980,29981,29991,29992,29992,29993,29995,29994,29995,29996,29996,29995,29999]} 1. e4 {[%emt 0:00:03]} c6 {[%emt 0:06:47]} 2. Nf3 {[%emt 0:00:08]} d5 {[%emt 0:00:28]} 3. d3 {[%emt 0:00:06]} g6 {[%emt 0:02:09]} 4. e5 {[%emt 0:00:19]} Bg7 {[%emt 0:01:05]} 5. h3 {[%emt 0:00:23]} f6 {[%emt 0:02:51]} 6. exf6 {[%emt 0:00:08]} exf6 {[%emt 0:01:13]} 7. d4 {[%emt 0:00:15]} Ne7 {[%emt 0:02:06]} 8. Be2 {[%emt 0:00:13] The position is equal.} O-O {[%emt 0:01:55]} 9. O-O {[%emt 0:00:17]} Re8 {[%emt 0:03:27]} 10. Re1 {[%emt 0:01:04]} Nd7 {[%emt 0:01:07]} 11. c4 {[%emt 0:00:56][%cal Bc2c4,Bc4c5][%mdl 32]} Nb6 {[%emt 0:05:33]} 12. b3 {[%emt 0:00:07]} Be6 {[%emt 0:02:30]} 13. c5 {[%emt 0:00:41]} Nd7 {[%emt 0:01:05] [#]} 14. Ba6 $1 {[%emt 0:00:17]} bxa6 {[%emt 0:15:25]} 15. Rxe6 {[%emt 0:00:19]} Qc8 {[%emt 0:06:09][%cal Od7e5]} 16. Re2 {[%emt 0:01:33]} Nf8 {[%emt 0:03:02]} 17. Nc3 {[%emt 0:01:43]} g5 {[%emt 0:02:22]} 18. Qd3 {[%emt 0:00:35]} Nfg6 {[%emt 0:01:04]} 19. Bd2 {[%emt 0:00:13] White is much more active.} h5 {[%emt 0:04:50]} (19... a5 $16 20. Rae1 h6) 20. Rae1 $18 {[%emt 0:00:21]} Qd7 {[%emt 0:01:11] [#]} 21. Nxg5 {[%emt 0:01:34]} fxg5 $16 {[%emt 0:00:54]} 22. Bxg5 {[%emt 0:00:07][%cal Oe2e6]} Nf5 $2 {[%emt 0:08:45][%mdl 8192] Loses the game.} (22... Rf8 $16 {was called for.}) 23. Rxe8+ $18 {[%emt 0:00:26]} (23. Qxa6 $2 Nxd4 (23... Bxd4 $2 24. Nd1 $19) 24. Rxe8+ Rxe8 25. Rxe8+ Qxe8 $19) 23... Rxe8 {[%emt 0:00:01]} 24. Rxe8+ {[%emt 0:00:09]} Qxe8 {[%emt 0:00:01]} 25. Qxf5 {[%emt 0:00:10]} Qe1+ {[%emt 0:00:29]} 26. Kh2 {[%emt 0:00:07]} Nf8 {[%emt 0:01:03]} (26... Qe8 $142 27. Be3 Nf8) 27. Qd3 $2 {[%emt 0:10:44]} (27. Nxd5 {Strongly threatening Ne7+.} cxd5 28. Be3 (28. Qxd5+ Qe6 $18)) 27... Qxf2 {[%emt 0:01:57]} 28. Be3 {[%emt 0:00:10]} (28. Qxa6 $2 Bxd4 (28... Qxd4 29. Qxc6 Be5+ 30. Kh1 $15) 29. Qe2 Qg1+ (29... Bxc5 30. Qxf2 Bxf2 31. Ne2 $11) 30. Kg3 Bxc3 $19) 28... Qe1 {[%emt 0:03:42]} 29. Ne2 {[%emt 0:01:36]} a5 {[%emt 0:01:34]} 30. Qd2 {[%emt 1:20:46]} Qb1 {[%emt 0:03:56]} (30... Qxd2 {is a better defense.} 31. Bxd2 Ne6) 31. Qxa5 {[%emt 0:00:00]} h4 {[%emt 0:00:19]} 32. Qd2 {[%emt 0:00:00]} (32. Qxa7 Qd3 (32... Qe4 33. Bg1 $11) 33. Bg1 Qxe2 $11) 32... Ne6 {[%emt 0:01:33]} 33. Bf2 {[%emt 0:00:00]} Bf6 {[%emt 0:02:01]} 34. Qe3 {[%emt 0:00:00]} Kf7 {[%emt 0:00:37]} 35. Qf3 {[%emt 0:00:00] Against Qf5} Ke7 {[%emt 0:00:53]} 36. Qg4 {[%emt 0:00:00]} Qxa2 $2 {[%emt 0:04:12]} (36... Qh7 37. Nf4 Nxf4) 37. Bxh4 {[%emt 0:00:00]} Qd2 {[%emt 0:01:35]} 38. Ng3 {[%emt 0:00:00]} (38. Bxf6+ Kxf6 39. Qh4+ Kf7 $18) 38... Bxh4 {[%emt 0:04:10]} 39. Qxh4+ {[%emt 0:00:00][%mdl 4096] Endgame. KQN-KQN} Kd7 {[%emt 0:00:17]} 40. Nf5 {[%emt 0:00:00] White wants to mate with Qe7+.} Kc8 {[%emt 0:01:43]} 41. Qh8+ {[%emt 0:00:00]} (41. Nd6+ $142 Kd7 42. Qh7+ Kd8 43. Qg8+ (43. Qxa7 Qf4+ 44. Kh1 Qf1+ 45. Kh2 Qf4+ 46. Kg1 Qc1+ 47. Kf2 Qd2+ 48. Kg1 Qc1+ 49. Kf2 Qd2+ 50. Kg1 Qe3+ 51. Kf1 Qc1+ 52. Kf2 $11) 43... Ke7 44. Qf7+ Kd8 45. Qe8+ Kc7 46. Qc8#) 41... Kb7 {[%emt 0:02:47]} 42. Nd6+ {[%emt 0:00:00]} Ka6 {[%emt 0:00:03]} 43. Qc8+ {[%emt 0:00:00]} Ka5 {[%emt 0:00:03]} 44. Qxe6 {[%emt 0:00:00][%cal Od6c4] Nc4+! would now be deadly.} Ka6 {[%emt 0:01:10]} 45. Qf6 {[%emt 0:00:00] Prevents Qf4+. White mates.} Qc1 {[%emt 0:00:51]} 46. Nf7 {[%emt 0:00:00]} Kb5 {[%emt 0:00:13]} 47. Ne5 {[%emt 0:00:00]} Kb4 {[%emt 0:00:46]} 48. Nd3+ {[%emt 0:00:00]} ({Weaker is} 48. Qxc6 Qf4+ 49. Kg1 (49. g3 Qf2+ 50. Kh1 Qf1+ 51. Kh2 Qf2+ 52. Kh1 Qf1+ 53. Kh2 Qf2+ $11) 49... Qxd4+ 50. Kf1 Qa1+ 51. Kf2 Qd4+ 52. Kg3 (52. Kf1 Qd1+ 53. Kf2 Qd4+ 54. Kg3 Qxe5+ 55. Kh4 Qe7+ 56. Kh5 Qxc5 $11) 52... Qxe5+ 53. Kg4 Qe4+ 54. Kh5 Qxg2 $11) 48... Ka3 {[%emt 0:00:03]} 49. Nxc1 {[%emt 0:00:00]} a6 {[%emt 0:00:01]} 50. Qxc6 {[%emt 0:00:00]} a5 {[%emt 0:00:00]} 51. Qxd5 {[%emt 0:00:00]} a4 {[%emt 0:00:00]} 52. c6 {[%emt 0:00:00]} axb3 {[%emt 0:00:02]} 53. Qxb3# {[%emt 0:00:00] Weighted Error Value: White=0.30/Black=0.66.  Loses game:     	---       	Black=1      Mistake:       	White=2     	Black=4      Inaccurate:     	---       	Black=5      OK:         	White=16    	Black=7      Best:        	White=2     	Black=1} 1-0

[Event "Djerba Festival Open-A 2024"]
[Site "Djerba"]
[Date "2024.02.22"]
[Round "5.6"]
[White "Barbaria, Yacine"]
[Black "Araoune, Saadi"]
[Result "1/2-1/2"]
[ECO "B10"]
[WhiteElo "2206"]
[BlackElo "2077"]
[Annotator "RC"]
[PlyCount "166"]
[EventDate "2024.02.18"]
[EventType "swiss"]
[EventCountry "TUN"]
[SourceTitle "playchess.com"]
[Source "ChessBase"]
[SourceQuality "1"]
[TimeControl "5400+30"]

1. e4 {[%emt 0:01:37]} c6 {[%emt 0:04:05]} 2. d3 {[%emt 0:00:06]} d5 {[%emt 0:00:07]} 3. Nd2 {[%emt 0:00:06]} e5 {[%emt 0:00:15]} 4. Ngf3 {[%emt 0:00:06]} Bd6 {[%emt 0:00:06]} 5. d4 {[%emt 0:00:07]} exd4 {[%emt 0:03:06]} 6. exd5 {[%emt 0:00:21]} Nf6 {[%emt 0:03:34]} 7. Nc4 {[%emt 0:01:25]} Bb4+ {[%emt 0:09:36]} 8. Bd2 {[%emt 0:00:25]} Qe7+ {[%emt 0:00:34]} 9. Qe2 {[%emt 0:00:18]} Bxd2+ {[%emt 0:00:51]} 10. Ncxd2 {[%emt 0:03:04]} Nxd5 {[%emt 0:03:04]} 11. Nxd4 {[%emt 0:02:36]} O-O {[%emt 0:03:45]} 12. Qxe7 {[%emt 0:00:21]} Nxe7 {[%emt 0:00:02]} 13. O-O-O {[%emt 0:00:35]} Nd7 {[%emt 0:03:33]} 14. Ne4 {[%emt 0:03:06]} Ne5 {[%emt 0:08:47]} 15. h3 {[%emt 0:02:28]} Rd8 {[%emt 0:08:16]} 16. f4 {[%emt 0:07:25]} N5g6 {[%emt 0:01:37]} 17. g3 {[%emt 0:03:22]} h5 {[%emt 0:10:12]} 18. h4 {[%emt 0:11:30]} Bg4 {[%emt 0:06:19]} 19. Rd2 {[%emt 0:00:40]} Nf5 {[%emt 0:11:01]} 20. Nxf5 {[%emt 0:01:27]} Rxd2 {[%emt 0:00:05]} 21. Kxd2 {[%emt 0:04:28]} Bxf5 {[%emt 0:00:14]} 22. Bd3 {[%emt 0:00:31]} Rd8 {[%emt 0:01:30]} 23. Re1 {[%emt 0:02:56]} Kf8 {[%emt 0:05:36]} 24. a4 {[%emt 0:09:22]} a5 {[%emt 0:06:19]} 25. Kc3 {[%emt 0:03:16]} Ne7 {[%emt 0:01:17]} 26. Bc4 {[%emt 0:03:28]} Nd5+ {[%emt 0:03:45]} 27. Bxd5 {[%emt 0:05:23]} cxd5 {[%emt 0:00:41]} 28. Nc5 {[%emt 0:00:22]} Rc8 {[%emt 0:00:38]} 29. Kd4 {[%emt 0:01:36]} b6 {[%emt 0:00:05]} 30. Nb7 {[%emt 0:04:36]} Rxc2 {[%emt 0:02:24]} 31. Kxd5 {[%emt 0:01:50]} Be6+ {[%emt 0:00:27]} 32. Kd6 {[%emt 0:00:36]} Rxb2 {[%emt 0:00:34]} 33. Kc6 {[%emt 0:00:30]} Bb3 {[%emt 0:01:14]} 34. Re4 {[%emt 0:00:11]} Rd2 {[%emt 0:00:47]} 35. Re5 {[%emt 0:02:22]} Bxa4+ {[%emt 0:01:26]} 36. Kxb6 {[%emt 0:00:13]} Rb2+ {[%emt 0:00:43]} 37. Kc7 {[%emt 0:07:20]} Bd1 {[%emt 0:00:58]} 38. Nxa5 {[%emt 0:01:52]} f6 {[%emt 0:00:57]} 39. Re3 {[%emt 0:01:05]} Rd2 {[%emt 0:00:37]} 40. Nc6 {[%emt 0:00:52]} Bg4 {[%emt 0:00:29]} 41. Kb6 {[%emt 0:01:55]} Kf7 {[%emt 0:00:21]} 42. Kc5 {[%emt 0:00:35]} Rc2+ {[%emt 0:00:46]} 43. Kd5 {[%emt 0:01:08]} Bh3 {[%emt 0:00:39]} 44. Nd4 {[%emt 0:02:44]} Bg2+ {[%emt 0:00:25]} 45. Kd6 {[%emt 0:00:08]} Rd2 {[%emt 0:00:10]} 46. Kc5 {[%emt 0:00:40]} Kg6 {[%emt 0:00:42]} 47. Kc4 {[%emt 0:00:50]} Rd1 {[%emt 0:00:14]} 48. Kc3 {[%emt 0:00:53]} Bf1 {[%emt 0:00:40]} 49. Rf3 {[%emt 0:01:59]} Ba6 {[%emt 0:00:17]} 50. Re3 {[%emt 0:00:29]} Ra1 {[%emt 0:00:45]} 51. Kd2 {[%emt 0:02:11]} Ra2+ {[%emt 0:00:09]} 52. Ke1 {[%emt 0:00:33]} Ra4 {[%emt 0:00:25]} 53. f5+ {[%emt 0:01:07]} Kf7 {[%emt 0:00:26]} 54. Nc6 {[%emt 0:01:21]} Ra1+ {[%emt 0:00:05]} 55. Kf2 {[%emt 0:00:43]} Rf1+ {[%emt 0:00:30]} 56. Kg2 {[%emt 0:00:19]} Rxf5 {[%emt 0:00:09]} 57. Re7+ {[%emt 0:00:34]} Kg6 {[%emt 0:01:17]} 58. Ra7 {[%emt 0:00:34]} Bf1+ {[%emt 0:00:07]} 59. Kg1 {[%emt 0:00:06]} Kh7 {[%emt 0:00:29]} 60. Nd4 {[%emt 0:00:47]} Rd5 {[%emt 0:00:19]} 61. Ne6 {[%emt 0:00:17]} Bc4 {[%emt 0:01:04]} 62. Nxg7 {[%emt 0:01:09]} Kg6 {[%emt 0:00:13]} 63. Re7 {[%emt 0:01:37]} Rd1+ {[%emt 0:01:04]} 64. Kf2 {[%emt 0:00:34]} Rd2+ {[%emt 0:00:50]} 65. Ke1 {[%emt 0:00:49]} Rg2 {[%emt 0:00:25]} 66. Ne8 {[%emt 0:00:11]} Bd5 {[%emt 0:00:49]} 67. Kf1 {[%emt 0:01:06]} Ra2 {[%emt 0:00:24]} 68. Rg7+ {[%emt 0:03:02]} Kf5 {[%emt 0:00:11]} 69. Rc7 {[%emt 0:01:12]} Ra8 {[%emt 0:00:51]} 70. Rc5 {[%emt 0:00:42]} Rxe8 {[%emt 0:00:35]} 71. Rxd5+ {[%emt 0:00:06]} Kg4 {[%emt 0:00:05]} 72. Kf2 {[%emt 0:00:14]} Ra8 {[%emt 0:00:25]} 73. Rd4+ {[%emt 0:00:54]} Kh3 {[%emt 0:00:06]} 74. Rd3 {[%emt 0:00:22]} Ra5 {[%emt 0:00:58]} 75. Kf3 {[%emt 0:01:07]} Rf5+ {[%emt 0:00:26]} 76. Ke4 {[%emt 0:00:08]} Rf1 {[%emt 0:00:04]} 77. Rf3 {[%emt 0:00:38]} Re1+ {[%emt 0:00:04]} 78. Kf5 {[%emt 0:00:23]} Ra1 {[%emt 0:01:28]} 79. Kxf6 {[%emt 0:01:18]} Kg4 {[%emt 0:00:07]} 80. Re3 {[%emt 0:00:33]} Ra6+ {[%emt 0:00:13]} 81. Ke5 {[%emt 0:00:16]} Ra5+ {[%emt 0:00:11]} 82. Ke4 {[%emt 0:00:26]} Ra4+ {[%emt 0:00:11]} 83. Ke5 {[%emt 0:00:06]} Ra5+ {[%emt 0:00:04]} 1/2-1/2

[Event "Djerba Festival Open-A 2024"]
[Site "Djerba"]
[Date "2024.02.22"]
[Round "5.7"]
[White "Jmila, Omar"]
[Black "Nassr, Lina"]
[Result "0-1"]
[ECO "E03"]
[WhiteElo "2152"]
[BlackElo "2051"]
[Annotator "RC"]
[PlyCount "104"]
[EventDate "2024.02.18"]
[EventType "swiss"]
[EventCountry "TUN"]
[SourceTitle "playchess.com"]
[Source "ChessBase"]
[SourceQuality "1"]
[TimeControl "5400+30"]

1. Nf3 {[%emt 0:02:57]} e6 {[%emt 0:00:55]} 2. g3 {[%emt 0:01:09]} Nf6 {[%emt 0:00:42]} 3. Bg2 {[%emt 0:00:57]} d5 {[%emt 0:00:18]} 4. c4 {[%emt 0:00:35]} dxc4 {[%emt 0:00:54]} 5. Qa4+ {[%emt 0:01:05]} Nbd7 {[%emt 0:00:23]} 6. O-O {[%emt 0:00:40]} a6 {[%emt 0:05:07]} 7. Qxc4 {[%emt 0:02:00]} c5 {[%emt 0:02:41]} 8. Qc2 {[%emt 0:02:41]} b5 {[%emt 0:07:14]} 9. d4 {[%emt 0:13:37]} Bb7 {[%emt 0:00:48]} 10. dxc5 {[%emt 0:01:24]} Bxc5 {[%emt 0:01:52]} 11. Nc3 {[%emt 0:02:58]} Rc8 {[%emt 0:04:05]} 12. Qd3 {[%emt 0:02:40]} b4 {[%emt 0:11:21]} 13. Nd1 {[%emt 0:01:47]} O-O {[%emt 0:04:16]} 14. Be3 {[%emt 0:03:37]} Qb6 {[%emt 0:01:35]} 15. Bxc5 {[%emt 0:03:34]} Nxc5 {[%emt 0:00:41]} 16. Qd4 {[%emt 0:00:37]} Rfd8 {[%emt 0:03:20]} 17. Qh4 {[%emt 0:00:23]} a5 {[%emt 0:05:39]} 18. Ne3 {[%emt 0:00:40]} Nce4 {[%emt 0:02:39]} 19. Ng5 {[%emt 0:13:51]} Nxg5 {[%emt 0:03:51]} 20. Qxg5 {[%emt 0:00:10]} Rc5 {[%emt 0:12:35]} 21. Qf4 {[%emt 0:00:44]} e5 {[%emt 0:01:30]} 22. Qh4 {[%emt 0:06:32]} Rd4 {[%emt 0:02:53]} 23. g4 {[%emt 0:01:08]} h5 {[%emt 0:04:49]} 24. Bxb7 {[%emt 0:04:26]} Qxb7 {[%emt 0:03:34]} 25. Rfc1 {[%emt 0:06:01]} Rxc1+ {[%emt 0:06:15]} 26. Rxc1 {[%emt 0:00:11]} Qd7 {[%emt 0:03:48]} 27. Qg5 {[%emt 0:02:35]} Nd5 {[%emt 0:07:19]} 28. gxh5 {[%emt 0:02:59]} f6 {[%emt 0:00:55]} 29. Qf5 {[%emt 0:01:56]} Nxe3 {[%emt 0:01:02]} 30. Rc8+ {[%emt 0:04:24]} Kf7 {[%emt 0:00:10]} 31. Qxd7+ {[%emt 0:04:22]} Rxd7 {[%emt 0:00:02]} 32. fxe3 {[%emt 0:00:15]} Rd2 {[%emt 0:00:28]} 33. Rc7+ {[%emt 0:03:34]} Kg8 {[%emt 0:00:19]} 34. h6 {[%emt 0:00:06]} gxh6 {[%emt 0:00:20]} 35. Ra7 {[%emt 0:00:49]} Rxb2 {[%emt 0:01:44]} 36. Rxa5 {[%emt 0:00:08]} Rxe2 {[%emt 0:00:21]} 37. Ra4 {[%emt 0:00:11]} Rxe3 {[%emt 0:00:42]} 38. Rxb4 {[%emt 0:00:04]} Ra3 {[%emt 0:00:11]} 39. Rb2 {[%emt 0:00:36]} Kf7 {[%emt 0:00:20]} 40. h4 {[%emt 0:00:57]} h5 {[%emt 0:00:42]} 41. Rh2 {[%emt 0:01:22]} Ke6 {[%emt 0:01:24]} 42. Kf1 {[%emt 0:00:16]} e4 {[%emt 0:00:22]} 43. Ke1 {[%emt 0:00:08]} Ke5 {[%emt 0:00:42]} 44. Rb2 {[%emt 0:00:29]} f5 {[%emt 0:00:41]} 45. Kd1 {[%emt 0:00:48]} Kf4 {[%emt 0:00:25]} 46. Rg2 {[%emt 0:00:14]} Kf3 {[%emt 0:00:40]} 47. Rc2 {[%emt 0:00:40]} f4 {[%emt 0:00:23]} 48. Ke1 {[%emt 0:00:43]} e3 {[%emt 0:00:16]} 49. Kf1 {[%emt 0:00:08]} Kg3 {[%emt 0:00:37]} 50. Kg1 {[%emt 0:01:06]} f3 {[%emt 0:00:19]} 51. Kh1 {[%emt 0:02:44]} Rd3 {[%emt 0:00:45]} 52. Rc1 {[%emt 0:00:28]} f2 {[%emt 0:00:22]} 0-1

[Event "Djerba Festival Open-A 2024"]
[Site "Djerba"]
[Date "2024.02.22"]
[Round "5.8"]
[White "Egorov, Konstantin"]
[Black "Lorans, Sylvain"]
[Result "1/2-1/2"]
[ECO "D38"]
[WhiteElo "2118"]
[BlackElo "2076"]
[Annotator "RC"]
[PlyCount "154"]
[EventDate "2024.02.18"]
[EventType "swiss"]
[EventCountry "TUN"]
[SourceTitle "playchess.com"]
[Source "ChessBase"]
[SourceQuality "1"]
[TimeControl "5400+30"]

1. d4 {[%emt 0:00:03]} Nf6 {[%emt 0:00:12]} 2. Nf3 {[%emt 0:00:16]} d5 {[%emt 0:00:14]} 3. c4 {[%emt 0:00:06]} e6 {[%emt 0:00:05]} 4. Nc3 {[%emt 0:00:08]} Bb4 {[%emt 0:00:22]} 5. Bg5 {[%emt 0:00:23]} h6 {[%emt 0:00:14]} 6. Bxf6 {[%emt 0:00:16]} Qxf6 {[%emt 0:00:09]} 7. Qa4+ {[%emt 0:00:20]} Nc6 {[%emt 0:00:11]} 8. e3 {[%emt 0:00:38]} O-O {[%emt 0:00:23]} 9. Be2 {[%emt 0:00:22]} dxc4 {[%emt 0:00:36]} 10. O-O {[%emt 0:01:32]} Qe7 {[%emt 0:01:05]} 11. Bxc4 {[%emt 0:04:15]} Bd7 {[%emt 0:17:33]} 12. Qc2 {[%emt 0:01:04]} Na5 {[%emt 0:00:08]} 13. Be2 {[%emt 0:02:53]} c5 {[%emt 0:00:23]} 14. a3 {[%emt 0:01:04]} Bxc3 {[%emt 0:00:16]} 15. Qxc3 {[%emt 0:00:53]} b6 {[%emt 0:00:11]} 16. dxc5 {[%emt 0:03:24]} Qxc5 {[%emt 0:00:28]} 17. Qxc5 {[%emt 0:00:19]} bxc5 {[%emt 0:00:04]} 18. b4 {[%emt 0:00:10]} cxb4 {[%emt 0:01:00]} 19. axb4 {[%emt 0:00:05]} Nc6 {[%emt 0:04:38]} 20. b5 {[%emt 0:09:56]} Ne7 {[%emt 0:00:26]} 21. Ne5 {[%emt 0:00:16]} Rfd8 {[%emt 0:02:05]} 22. Bc4 {[%emt 0:44:52]} Be8 {[%emt 0:07:21]} 23. e4 {[%emt 0:03:04]} Rdb8 {[%emt 0:11:14]} 24. Ra5 {[%emt 0:00:58]} Rb6 {[%emt 0:02:04]} 25. Rfa1 {[%emt 0:02:55]} Nc8 {[%emt 0:01:19]} 26. f4 {[%emt 0:03:34]} Nd6 {[%emt 0:11:59]} 27. Rxa7 {[%emt 0:00:46]} Rxa7 {[%emt 0:00:03]} 28. Rxa7 {[%emt 0:00:05]} Bxb5 {[%emt 0:00:15]} 29. Ra8+ {[%emt 0:09:46]} Kh7 {[%emt 0:00:44]} 30. Ba2 {[%emt 0:01:00]} f6 {[%emt 0:08:08]} 31. Nf3 {[%emt 0:03:21]} Nxe4 {[%emt 0:00:12]} 32. h4 {[%emt 0:01:30]} Nc3 {[%emt 0:00:36]} 33. Nd4 {[%emt 0:02:08]} Nxa2 {[%emt 0:02:16]} 34. Nxb5 {[%emt 0:01:00]} Rxb5 {[%emt 0:00:24]} 35. Rxa2 {[%emt 0:00:05]} Rb4 {[%emt 0:00:34]} 36. g3 {[%emt 0:00:27]} Kg6 {[%emt 0:00:13]} 37. Ra5 {[%emt 0:02:49]} h5 {[%emt 0:00:18]} 38. Kf2 {[%emt 0:00:15]} Rd4 {[%emt 0:00:44]} 39. Ke3 {[%emt 0:00:53]} Rd5 {[%emt 0:00:04]} 40. Ra7 {[%emt 0:00:03]} Rb5 {[%emt 0:01:46]} 41. Re7 {[%emt 0:01:10]} Rb3+ {[%emt 0:00:21]} 42. Kf2 {[%emt 0:00:07]} Rb6 {[%emt 0:00:04]} 43. Ke3 {[%emt 0:00:11]} Kh6 {[%emt 0:03:02]} 44. Re8 {[%emt 0:01:43]} Kh7 {[%emt 0:02:07]} 45. Re7 {[%emt 0:00:44]} Kg8 {[%emt 0:00:46]} 46. Ra7 {[%emt 0:00:12]} Rb3+ {[%emt 0:00:18]} 47. Kf2 {[%emt 0:00:04]} Rb5 {[%emt 0:00:12]} 48. Re7 {[%emt 0:00:25]} e5 {[%emt 0:00:17]} 49. fxe5 {[%emt 0:00:06]} Rxe5 {[%emt 0:00:23]} 50. Ra7 {[%emt 0:00:05]} Kh7 {[%emt 0:00:35]} 51. Kf3 {[%emt 0:00:20]} Kg6 {[%emt 0:00:20]} 52. Kf4 {[%emt 0:00:51]} Rf5+ {[%emt 0:00:11]} 53. Ke4 {[%emt 0:00:02]} Rf1 {[%emt 0:00:14]} 54. Ke3 {[%emt 0:00:24]} Kh6 {[%emt 0:00:13]} 55. Ra8 {[%emt 0:01:22]} g5 {[%emt 0:01:59]} 56. Rh8+ {[%emt 0:00:37]} Kg6 {[%emt 0:00:08]} 57. hxg5 {[%emt 0:00:55]} Kxg5 {[%emt 0:00:06]} 58. Rg8+ {[%emt 0:00:37]} Kf5 {[%emt 0:00:10]} 59. Ke2 {[%emt 0:00:24]} Ra1 {[%emt 0:00:12]} 60. Kf3 {[%emt 0:00:26]} Ra3+ {[%emt 0:00:36]} 61. Kf2 {[%emt 0:00:09]} Ra4 {[%emt 0:00:16]} 62. Kf3 {[%emt 0:00:28]} h4 {[%emt 0:01:18]} 63. gxh4 {[%emt 0:00:17]} Rxh4 {[%emt 0:00:06]} 64. Ra8 {[%emt 0:00:10]} Rh3+ {[%emt 0:00:25]} 65. Kf2 {[%emt 0:00:08]} Rb3 {[%emt 0:00:17]} 66. Ra4 {[%emt 0:00:13]} Kg5 {[%emt 0:00:25]} 67. Rc4 {[%emt 0:00:23]} f5 {[%emt 0:00:42]} 68. Ra4 {[%emt 0:00:10]} Rd3 {[%emt 0:00:22]} 69. Rb4 {[%emt 0:00:37]} Kf6 {[%emt 0:00:18]} 70. Ke2 {[%emt 0:00:32]} Ra3 {[%emt 0:02:24]} 71. Kf2 {[%emt 0:00:23]} Kg5 {[%emt 0:00:09]} 72. Rc4 {[%emt 0:00:13]} f4 {[%emt 0:00:14]} 73. Rc8 {[%emt 0:00:19]} f3 {[%emt 0:00:15]} 74. Rg8+ {[%emt 0:00:18]} Kf5 {[%emt 0:00:11]} 75. Rf8+ {[%emt 0:00:04]} Ke6 {[%emt 0:00:07]} 76. Rxf3 {[%emt 0:00:05]} Rxf3+ {[%emt 0:00:06]} 77. Kxf3 {[%emt 0:00:03]} Ke5 {[%emt 0:28:14]} 1/2-1/2

[Event "Djerba Festival Open-A 2024"]
[Site "Djerba"]
[Date "2024.02.22"]
[Round "5.9"]
[White "Kadi, Mohamed El Mouldi"]
[Black "Dwilewicz, Katarzyna"]
[Result "1/2-1/2"]
[ECO "B48"]
[WhiteElo "2067"]
[BlackElo "2129"]
[Annotator "NA RC"]
[PlyCount "60"]
[EventDate "2024.02.18"]
[EventType "swiss"]
[EventCountry "TUN"]
[SourceTitle "playchess.com"]
[Source "ChessBase"]
[SourceQuality "1"]
[TimeControl "5400+30"]

1. e4 {[%emt 0:00:03]} c5 {[%emt 0:01:49]} 2. Nf3 {[%emt 0:00:06]} Nc6 {[%emt 0:00:07]} 3. d4 {[%emt 0:00:08]} cxd4 {[%emt 0:00:12]} 4. Nxd4 {[%emt 0:00:03]} e6 {[%emt 0:00:08]} 5. Nc3 {[%emt 0:00:07]} a6 {[%emt 0:00:13]} 6. Be3 {[%emt 0:00:20]} Nf6 {[%emt 0:00:41]} 7. a3 {[%emt 0:02:41]} Be7 {[%emt 0:05:02]} 8. f4 {[%emt 0:05:16]} d6 {[%emt 0:02:20]} 9. Bd3 {[%emt 0:03:21]} O-O {[%emt 0:00:19]} 10. O-O {[%emt 0:00:29]} Qc7 {[%emt 0:04:56]} 11. Kh1 {[%emt 0:03:48]} Nxd4 {[%emt 0:02:14]} 12. Bxd4 {[%emt 0:00:03]} e5 {[%emt 0:00:06]} 13. Be3 {[%emt 0:02:10]} b5 {[%emt 0:05:28]} 14. Qf3 {[%emt 0:04:29]} Bb7 {[%emt 0:01:54]} 15. Qh3 {[%emt 0:04:10]} Qd7 {[%emt 0:04:30]} 16. Qf3 {[%emt 0:04:40]} Rac8 {[%emt 0:03:13]} 17. Rad1 {[%emt 0:03:23]} Qc7 {[%emt 0:08:50]} 18. Qh3 {[%emt 0:03:33]} Rfe8 {[%emt 0:03:42]} 19. fxe5 {[%emt 0:07:12]} dxe5 {[%emt 0:00:20]} 20. Bg5 {[%emt 0:00:31]} Qb6 {[%emt 0:07:40]} 21. Bxf6 {[%emt 0:12:19]} Bxf6 {[%emt 0:00:08]} 22. Nd5 {[%emt 0:01:14]} Qe6 {[%emt 0:08:42]} 23. Nxf6+ {[%emt 0:03:59]} gxf6 {[%emt 0:00:05]} 24. Rf5 {[%emt 0:00:09]} Kh8 {[%emt 0:01:59]} 25. Qh4 {[%emt 0:09:58]} Rg8 {[%emt 0:02:19]} 26. Rdf1 {[%emt 0:02:45]} Rg6 {[%emt 0:03:05]} 27. Rh5 {[%emt 0:06:25]} Kg7 {[%emt 0:03:33]} 28. Rxh7+ {[%emt 0:00:14]} Kf8 {[%emt 0:00:01]} 29. Rh8+ {[%emt 0:09:51]} Ke7 {[%emt 0:00:10]} 30. Rxc8 {[%emt 0:00:19]} Bxc8 {[%emt 0:00:20]} 1/2-1/2